[Event "Titled Tuesday Blitz February 28 Late 2023"]
[White "Bluebaum, Matthias"]
[Black "Golubka, Petro"]
[WhiteFideId "24651516"]
[BlackFideId "14114224"]
[WhiteElo "2638"]
[BlackElo "2404"]
[Result "0-1"]
[Round "08"]
[TimeControl "180+2"]
[Date "2023.02.28"]
[WhiteClock "0:00:56"]
[BlackClock "0:00:09"]

1. d4 {[%clk 0:03:00]}  d5 {[%clk 0:02:57]} 2. c4 {[%clk 0:03:01]}  Nc6 {[%clk 0:02:57]} 3. Nc3 {[%clk 0:03:01]}  e5 {[%clk 0:02:55]} 4. cxd5 {[%clk 0:03:01]}  Nxd4 {[%clk 0:02:54]} 5. e3 {[%clk 0:03:01]}  Nf5 {[%clk 0:02:53]} 6. Nf3 {[%clk 0:03:02]}  Bd6 {[%clk 0:02:53]} 7. e4 {[%clk 0:03:03]}  Nfe7 {[%clk 0:02:52]} 8. Be2 {[%clk 0:03:03]}  Nf6 {[%clk 0:02:52]} 9. O-O {[%clk 0:03:03]}  Ng6 {[%clk 0:02:50]} 10. Nd2 {[%clk 0:03:02]}  O-O {[%clk 0:02:50]} 11. Nc4 {[%clk 0:03:02]}  Bd7 {[%clk 0:02:46]} 12. Be3 {[%clk 0:03:00]}  a6 {[%clk 0:02:42]} 13. Rc1 {[%clk 0:03:00]}  b5 {[%clk 0:02:40]} 14. Nxd6 {[%clk 0:03:01]}  cxd6 {[%clk 0:02:40]} 15. a3 {[%clk 0:03:01]}  Ne8 {[%clk 0:02:33]} 16. Qd2 {[%clk 0:02:59]}  f5 {[%clk 0:02:32]} 17. exf5 {[%clk 0:02:59]}  Bxf5 {[%clk 0:02:32]} 18. Na2 {[%clk 0:02:56]}  Nf6 {[%clk 0:02:31]} 19. f3 {[%clk 0:02:49]}  h5 {[%clk 0:02:21]} 20. Nb4 {[%clk 0:02:36]}  h4 {[%clk 0:02:19]} 21. Rc6 {[%clk 0:02:28]}  a5 {[%clk 0:02:17]} 22. Na2 {[%clk 0:02:24]}  Ne7 {[%clk 0:02:15]} 23. Rb6 {[%clk 0:02:08]}  Nexd5 {[%clk 0:01:59]} 24. Rxb5 {[%clk 0:02:09]}  Nxe3 {[%clk 0:01:58]} 25. Qxe3 {[%clk 0:02:09]}  h3 {[%clk 0:01:56]} 26. g3 {[%clk 0:02:07]}  Bd7 {[%clk 0:01:53]} 27. Rb6 {[%clk 0:01:59]}  d5 {[%clk 0:01:43]} 28. Rc1 {[%clk 0:01:49]}  Rb8 {[%clk 0:01:40]} 29. Rxb8 {[%clk 0:01:44]}  Qxb8 {[%clk 0:01:39]} 30. b4 {[%clk 0:01:44]}  Be6 {[%clk 0:01:27]} 31. Rc5 {[%clk 0:01:27]}  d4 {[%clk 0:01:20]} 32. Qd2 {[%clk 0:01:27]}  e4 {[%clk 0:00:58]} 33. Nc1 {[%clk 0:01:18]}  exf3 {[%clk 0:00:37]} 34. Bxf3 {[%clk 0:01:19]}  Nd7 {[%clk 0:00:36]} 35. Rc6 {[%clk 0:01:17]}  Ne5 {[%clk 0:00:34]} 36. Be4 {[%clk 0:01:13]}  Nxc6 {[%clk 0:00:32]} 37. Bxc6 {[%clk 0:01:14]}  axb4 {[%clk 0:00:31]} 38. axb4 {[%clk 0:01:14]}  Qe5 {[%clk 0:00:27]} 39. Qe2 {[%clk 0:01:14]}  Qxe2 {[%clk 0:00:24]} 40. Nxe2 {[%clk 0:01:15]}  d3 {[%clk 0:00:25]} 41. Nc3 {[%clk 0:01:04]}  d2 {[%clk 0:00:23]} 42. Bb5 {[%clk 0:00:55]}  Rc8 {[%clk 0:00:18]} 43. Nd1 {[%clk 0:00:55]}  Rc1 {[%clk 0:00:17]} 44. Ba4 {[%clk 0:00:54]}  Bg4 {[%clk 0:00:15]} 45. Bb3+ {[%clk 0:00:54]}  Kh8 {[%clk 0:00:14]} 46. Kf2 {[%clk 0:00:54]}  Bxd1 {[%clk 0:00:14]} 47. Bxd1 {[%clk 0:00:55]}  Rxd1 {[%clk 0:00:14]} 48. Ke2 {[%clk 0:00:56]}  Rh1 {[%clk 0:00:13]} 49. Kxd2 {[%clk 0:00:57]}  Rxh2+ {[%clk 0:00:14]} 50. Ke3 {[%clk 0:00:58]}  Rb2 {[%clk 0:00:13]} 51. g4 {[%clk 0:00:58]}  h2 {[%clk 0:00:14]} 52. Kf4 {[%clk 0:00:58]}  g5+ {[%clk 0:00:13]} 53. Kxg5 {[%clk 0:00:58]}  h1=Q {[%clk 0:00:13]} 54. b5 {[%clk 0:00:58]}  Qh2 {[%clk 0:00:11]} 55. Kg6 {[%clk 0:00:58]}  Qe5 {[%clk 0:00:09]} 56. g5 {[%clk 0:00:58]}  Kg8 {[%clk 0:00:08]} 57. b6 {[%clk 0:00:57]}  Qe6+ {[%clk 0:00:08]} 58. Kh5 {[%clk 0:00:56]}  Rh2# {[%clk 0:00:09]} 0-1


[Site "https://www.chess.com"]

[Event "Titled Tuesday Blitz February 28 Late 2023"]
[White "Hansen, Eric"]
[Black "Wieczorek, Oskar"]
[WhiteFideId "2606771"]
[BlackFideId "1133950"]
[WhiteElo "2569"]
[BlackElo "2418"]
[Result "1-0"]
[Round "08"]
[TimeControl "180+2"]
[Date "2023.02.28"]
[WhiteClock "0:00:10"]
[BlackClock "0:00:03"]

1. e4 {[%clk 0:03:00]}  c5 {[%clk 0:02:59]} 2. Nf3 {[%clk 0:03:00]}  e6 {[%clk 0:03:00]} 3. d4 {[%clk 0:02:56]}  cxd4 {[%clk 0:03:01]} 4. Nxd4 {[%clk 0:02:56]}  Nf6 {[%clk 0:03:01]} 5. Nc3 {[%clk 0:02:55]}  d6 {[%clk 0:03:02]} 6. g4 {[%clk 0:02:54]}  e5 {[%clk 0:03:02]} 7. Bb5+ {[%clk 0:02:52]}  Bd7 {[%clk 0:02:59]} 8. Bxd7+ {[%clk 0:02:52]}  Qxd7 {[%clk 0:03:00]} 9. Nf5 {[%clk 0:02:51]}  h5 {[%clk 0:03:01]} 10. g5 {[%clk 0:02:47]}  Nxe4 {[%clk 0:02:54]} 11. Nxg7+ {[%clk 0:02:47]}  Bxg7 {[%clk 0:02:54]} 12. Nxe4 {[%clk 0:02:48]}  d5 {[%clk 0:02:51]} 13. Ng3 {[%clk 0:02:47]}  h4 {[%clk 0:02:20]} 14. Nh5 {[%clk 0:02:46]}  Kf8 {[%clk 0:02:21]} 15. f4 {[%clk 0:02:40]}  Nc6 {[%clk 0:02:14]} 16. O-O {[%clk 0:02:39]}  Qh3 {[%clk 0:01:02]} 17. c3 {[%clk 0:02:05]}  Rd8 {[%clk 0:00:44]} 18. f5 {[%clk 0:01:59]}  Kg8 {[%clk 0:00:44]} 19. Qe2 {[%clk 0:01:09]}  d4 {[%clk 0:00:40]} 20. Bd2 {[%clk 0:00:46]}  d3 {[%clk 0:00:38]} 21. Qd1 {[%clk 0:00:45]}  e4 {[%clk 0:00:24]} 22. f6 {[%clk 0:00:38]}  Bf8 {[%clk 0:00:22]} 23. Nf4 {[%clk 0:00:38]}  Qd7 {[%clk 0:00:13]} 24. Kh1 {[%clk 0:00:27]}  Bc5 {[%clk 0:00:12]} 25. g6 {[%clk 0:00:21]}  e3 {[%clk 0:00:12]} 26. gxf7+ {[%clk 0:00:20]}  Kxf7 {[%clk 0:00:06]} 27. Qb3+ {[%clk 0:00:20]}  Kxf6 {[%clk 0:00:03]} 28. Ne6+ {[%clk 0:00:17]}  Ke5 {[%clk 0:00:02]} 29. Nxc5 {[%clk 0:00:17]}  Qd5+ {[%clk 0:00:02]} 30. Qxd5+ {[%clk 0:00:17]}  Rxd5 {[%clk 0:00:02]} 31. Bxe3 {[%clk 0:00:17]}  d2 {[%clk 0:00:02]} 32. Rad1 {[%clk 0:00:16]}  Rhd8 {[%clk 0:00:03]} 33. Nb3 {[%clk 0:00:13]}  Rd3 {[%clk 0:00:03]} 34. Bg5 {[%clk 0:00:11]}  Ke4 {[%clk 0:00:03]} 35. Nc5+ {[%clk 0:00:10]} 1-0


[Site "https://www.chess.com"]

[Event "Titled Tuesday Blitz February 28 Late 2023"]
[White "Plenca, Jadranko"]
[Black "Gokerkan, Cem Kaan"]
[WhiteFideId "14527146"]
[BlackFideId "6336760"]
[WhiteElo "2491"]
[BlackElo "2365"]
[Result "0-1"]
[Round "08"]
[TimeControl "180+2"]
[Date "2023.02.28"]
[WhiteClock "0:00:57"]
[BlackClock "0:00:03"]

1. e4 {[%clk 0:03:00]}  e5 {[%clk 0:02:59]} 2. Nf3 {[%clk 0:03:00]}  Nf6 {[%clk 0:02:59]} 3. Nxe5 {[%clk 0:02:52]}  d5 {[%clk 0:03:00]} 4. d4 {[%clk 0:02:48]}  Nxe4 {[%clk 0:02:59]} 5. Bd3 {[%clk 0:02:48]}  Nd7 {[%clk 0:02:59]} 6. O-O {[%clk 0:02:44]}  Bd6 {[%clk 0:02:24]} 7. Nf3 {[%clk 0:02:29]}  O-O {[%clk 0:02:23]} 8. c4 {[%clk 0:02:29]}  c6 {[%clk 0:02:20]} 9. Nc3 {[%clk 0:02:29]}  Ndf6 {[%clk 0:02:18]} 10. cxd5 {[%clk 0:02:28]}  Nxc3 {[%clk 0:02:10]} 11. bxc3 {[%clk 0:02:28]}  Nxd5 {[%clk 0:02:08]} 12. c4 {[%clk 0:02:25]}  Nf4 {[%clk 0:02:08]} 13. Bxf4 {[%clk 0:02:15]}  Bxf4 {[%clk 0:02:09]} 14. h3 {[%clk 0:02:16]}  Re8 {[%clk 0:02:04]} 15. Qc2 {[%clk 0:02:15]}  g6 {[%clk 0:02:02]} 16. Rab1 {[%clk 0:02:16]}  b6 {[%clk 0:02:00]} 17. Be4 {[%clk 0:02:13]}  Qc7 {[%clk 0:01:48]} 18. Rfe1 {[%clk 0:02:11]}  Bb7 {[%clk 0:01:36]} 19. c5 {[%clk 0:02:09]}  Rad8 {[%clk 0:01:23]} 20. a4 {[%clk 0:02:07]}  Re6 {[%clk 0:00:56]} 21. Bd3 {[%clk 0:02:01]}  Rxe1+ {[%clk 0:00:51]} 22. Rxe1 {[%clk 0:02:01]}  bxc5 {[%clk 0:00:48]} 23. Qxc5 {[%clk 0:01:57]}  Bd6 {[%clk 0:00:45]} 24. Qc4 {[%clk 0:01:54]}  c5 {[%clk 0:00:44]} 25. Ng5 {[%clk 0:01:48]}  cxd4 {[%clk 0:00:39]} 26. Qxc7 {[%clk 0:01:48]}  Bxc7 {[%clk 0:00:39]} 27. Re7 {[%clk 0:01:48]}  Rc8 {[%clk 0:00:18]} 28. Nxf7 {[%clk 0:01:43]}  Kf8 {[%clk 0:00:17]} 29. Rd7 {[%clk 0:01:43]}  Bc6 {[%clk 0:00:16]} 30. Ne5 {[%clk 0:01:15]}  Bxd7 {[%clk 0:00:12]} 31. Nxd7+ {[%clk 0:01:16]}  Ke7 {[%clk 0:00:12]} 32. Nc5 {[%clk 0:01:16]}  Bb6 {[%clk 0:00:11]} 33. Ne4 {[%clk 0:01:17]}  Rc1+ {[%clk 0:00:11]} 34. Kh2 {[%clk 0:01:17]}  Bc7+ {[%clk 0:00:11]} 35. g3 {[%clk 0:01:17]}  Ra1 {[%clk 0:00:12]} 36. Bb5 {[%clk 0:01:16]}  d3 {[%clk 0:00:10]} 37. Kg2 {[%clk 0:01:14]}  Ba5 {[%clk 0:00:10]} 38. Bxd3 {[%clk 0:01:13]}  Rxa4 {[%clk 0:00:10]} 39. Ng5 {[%clk 0:01:11]}  h6 {[%clk 0:00:09]} 40. Nf3 {[%clk 0:01:11]}  g5 {[%clk 0:00:09]} 41. Nh2 {[%clk 0:01:10]}  Bb6 {[%clk 0:00:09]} 42. Ng4 {[%clk 0:01:10]}  Ra2 {[%clk 0:00:08]} 43. Kf3 {[%clk 0:01:06]}  h5 {[%clk 0:00:07]} 44. Ne5 {[%clk 0:01:06]}  Rxf2+ {[%clk 0:00:07]} 45. Ke4 {[%clk 0:01:07]}  a5 {[%clk 0:00:06]} 46. Nf3 {[%clk 0:01:05]}  Kf6 {[%clk 0:00:03]} 47. Bb5 {[%clk 0:01:03]}  Rb2 {[%clk 0:00:03]} 48. Bd7 {[%clk 0:01:02]}  a4 {[%clk 0:00:04]} 49. Kd3 {[%clk 0:00:59]}  Rb3+ {[%clk 0:00:03]} 50. Ke2 {[%clk 0:00:57]}  Re3+ {[%clk 0:00:03]} 0-1


[Site "https://www.chess.com"]

[Event "Titled Tuesday Blitz February 28 Late 2023"]
[White "Sebag, Marie"]
[Black "Holt, Conrad"]
[WhiteFideId "617822"]
[BlackFideId "2034387"]
[WhiteElo "2440"]
[BlackElo "2592"]
[Result "1/2-1/2"]
[Round "08"]
[TimeControl "180+2"]
[Date "2023.02.28"]
[WhiteClock "0:00:04"]
[BlackClock "0:00:13"]

1. e4 {[%clk 0:02:54]}  e6 {[%clk 0:03:00]} 2. d4 {[%clk 0:02:50]}  d5 {[%clk 0:03:00]} 3. Nd2 {[%clk 0:02:50]}  c5 {[%clk 0:02:59]} 4. Ngf3 {[%clk 0:02:46]}  cxd4 {[%clk 0:02:59]} 5. Nxd4 {[%clk 0:02:46]}  Nf6 {[%clk 0:02:59]} 6. exd5 {[%clk 0:02:42]}  Nxd5 {[%clk 0:03:00]} 7. N2f3 {[%clk 0:02:41]}  Bb4+ {[%clk 0:02:59]} 8. Bd2 {[%clk 0:02:39]}  O-O {[%clk 0:02:59]} 9. Be2 {[%clk 0:02:30]}  Re8 {[%clk 0:02:46]} 10. O-O {[%clk 0:02:27]}  e5 {[%clk 0:02:45]} 11. Nb3 {[%clk 0:02:18]}  e4 {[%clk 0:02:40]} 12. Nfd4 {[%clk 0:02:01]}  Bf8 {[%clk 0:02:33]} 13. c4 {[%clk 0:01:56]}  Nb4 {[%clk 0:02:27]} 14. Bc3 {[%clk 0:01:36]}  Bd7 {[%clk 0:02:08]} 15. a3 {[%clk 0:01:26]}  N4c6 {[%clk 0:02:08]} 16. Rc1 {[%clk 0:01:22]}  Qg5 {[%clk 0:02:02]} 17. Nxc6 {[%clk 0:01:14]}  Bh3 {[%clk 0:01:53]} 18. g3 {[%clk 0:01:06]}  Bxf1 {[%clk 0:01:44]} 19. Bxf1 {[%clk 0:00:55]}  Nxc6 {[%clk 0:01:43]} 20. Bg2 {[%clk 0:00:53]}  Rad8 {[%clk 0:01:42]} 21. Qe2 {[%clk 0:00:53]}  e3 {[%clk 0:01:35]} 22. f4 {[%clk 0:00:51]}  Qf5 {[%clk 0:01:32]} 23. Re1 {[%clk 0:00:49]}  Qd3 {[%clk 0:01:24]} 24. Qxd3 {[%clk 0:00:43]}  Rxd3 {[%clk 0:01:24]} 25. Bd5 {[%clk 0:00:39]}  Bxa3 {[%clk 0:01:21]} 26. Nc1 {[%clk 0:00:31]}  Rxc3 {[%clk 0:01:08]} 27. bxc3 {[%clk 0:00:29]}  Na5 {[%clk 0:00:51]} 28. Nd3 {[%clk 0:00:25]}  Bd6 {[%clk 0:00:21]} 29. Kg2 {[%clk 0:00:24]}  b6 {[%clk 0:00:20]} 30. Ne5 {[%clk 0:00:23]}  Bxe5 {[%clk 0:00:19]} 31. Rxe3 {[%clk 0:00:22]}  Kf8 {[%clk 0:00:19]} 32. fxe5 {[%clk 0:00:22]}  Ke7 {[%clk 0:00:17]} 33. Rf3 {[%clk 0:00:22]}  Rf8 {[%clk 0:00:18]} 34. Rf1 {[%clk 0:00:21]}  Nb3 {[%clk 0:00:18]} 35. Rf2 {[%clk 0:00:17]}  Nc5 {[%clk 0:00:17]} 36. Ra2 {[%clk 0:00:16]}  a5 {[%clk 0:00:18]} 37. Rb2 {[%clk 0:00:16]}  Nd7 {[%clk 0:00:17]} 38. Kf2 {[%clk 0:00:14]}  Rc8 {[%clk 0:00:16]} 39. Re2 {[%clk 0:00:12]}  a4 {[%clk 0:00:15]} 40. Ra2 {[%clk 0:00:12]}  Nc5 {[%clk 0:00:16]} 41. Ke3 {[%clk 0:00:11]}  f6 {[%clk 0:00:15]} 42. exf6+ {[%clk 0:00:11]}  Kxf6 {[%clk 0:00:16]} 43. Kd4 {[%clk 0:00:11]}  Re8 {[%clk 0:00:15]} 44. Rf2+ {[%clk 0:00:11]}  Kg5 {[%clk 0:00:15]} 45. Rf7 {[%clk 0:00:10]}  Kh6 {[%clk 0:00:14]} 46. Ra7 {[%clk 0:00:09]}  Re1 {[%clk 0:00:14]} 47. Ra8 {[%clk 0:00:08]}  Re2 {[%clk 0:00:13]} 48. Rb8 {[%clk 0:00:07]}  Rb2 {[%clk 0:00:12]} 49. Ke5 {[%clk 0:00:06]}  a3 {[%clk 0:00:12]} 50. Kd6 {[%clk 0:00:05]}  a2 {[%clk 0:00:13]} 51. Ra8 {[%clk 0:00:06]}  Nb3 {[%clk 0:00:13]} 52. c5 {[%clk 0:00:06]}  bxc5 {[%clk 0:00:07]} 53. Bxb3 {[%clk 0:00:06]}  Rxb3 {[%clk 0:00:08]} 54. Rxa2 {[%clk 0:00:06]}  Rxc3 {[%clk 0:00:09]} 55. Kd5 {[%clk 0:00:06]}  Kg5 {[%clk 0:00:09]} 56. Rf2 {[%clk 0:00:06]}  g6 {[%clk 0:00:09]} 57. Rf4 {[%clk 0:00:06]}  h6 {[%clk 0:00:08]} 58. Rh4 {[%clk 0:00:06]}  h5 {[%clk 0:00:08]} 59. Ke5 {[%clk 0:00:06]}  Rc1 {[%clk 0:00:08]} 60. Ke4 {[%clk 0:00:05]}  Rc2 {[%clk 0:00:08]} 61. Kf3 {[%clk 0:00:05]}  c4 {[%clk 0:00:09]} 62. Rd4 {[%clk 0:00:04]}  Rxh2 {[%clk 0:00:07]} 63. Rxc4 {[%clk 0:00:04]}  Rd2 {[%clk 0:00:07]} 64. Rc5+ {[%clk 0:00:05]}  Kf6 {[%clk 0:00:08]} 65. Rc6+ {[%clk 0:00:05]}  Kf5 {[%clk 0:00:08]} 66. Rc5+ {[%clk 0:00:05]}  Ke6 {[%clk 0:00:09]} 67. Rc6+ {[%clk 0:00:06]}  Rd6 {[%clk 0:00:09]} 68. Rc5 {[%clk 0:00:05]}  Kf6 {[%clk 0:00:09]} 69. Ra5 {[%clk 0:00:05]}  Rd3+ {[%clk 0:00:10]} 70. Kg2 {[%clk 0:00:04]}  Rd4 {[%clk 0:00:10]} 71. Ra6+ {[%clk 0:00:04]}  Kf5 {[%clk 0:00:10]} 72. Kh3 {[%clk 0:00:03]}  Rd2 {[%clk 0:00:09]} 73. Ra5+ {[%clk 0:00:04]}  Kf6 {[%clk 0:00:10]} 74. Ra6+ {[%clk 0:00:04]}  Kg5 {[%clk 0:00:10]} 75. Ra5+ {[%clk 0:00:04]}  Kh6 {[%clk 0:00:11]} 76. Ra6 {[%clk 0:00:05]}  Rd3 {[%clk 0:00:11]} 77. Rb6 {[%clk 0:00:05]}  Rd2 {[%clk 0:00:11]} 78. Ra6 {[%clk 0:00:05]}  Rd4 {[%clk 0:00:11]} 79. Rb6 {[%clk 0:00:05]}  Rd5 {[%clk 0:00:11]} 80. Ra6 {[%clk 0:00:05]}  Kg5 {[%clk 0:00:12]} 81. Ra4 {[%clk 0:00:06]}  Rb5 {[%clk 0:00:12]} 82. Rc4 {[%clk 0:00:06]}  Kf6 {[%clk 0:00:12]} 83. Rc6+ {[%clk 0:00:06]}  Kf5 {[%clk 0:00:12]} 84. Rc1 {[%clk 0:00:06]}  Rd5 {[%clk 0:00:12]} 85. Rf1+ {[%clk 0:00:06]}  Kg5 {[%clk 0:00:12]} 86. Re1 {[%clk 0:00:07]}  Rd2 {[%clk 0:00:12]} 87. Re5+ {[%clk 0:00:07]}  Kf6 {[%clk 0:00:12]} 88. Ra5 {[%clk 0:00:07]}  g5 {[%clk 0:00:12]} 89. Ra6+ {[%clk 0:00:07]}  Kf5 {[%clk 0:00:12]} 90. Ra5+ {[%clk 0:00:07]}  Kf6 {[%clk 0:00:12]} 91. Ra6+ {[%clk 0:00:08]}  Kf7 {[%clk 0:00:12]} 92. Ra5 {[%clk 0:00:07]}  g4+ {[%clk 0:00:11]} 93. Kh4 {[%clk 0:00:08]}  Rh2+ {[%clk 0:00:11]} 94. Kg5 {[%clk 0:00:08]}  Rh3 {[%clk 0:00:12]} 95. Kf4 {[%clk 0:00:07]}  Ke6 {[%clk 0:00:12]} 96. Ra6+ {[%clk 0:00:07]}  Kd5 {[%clk 0:00:12]} 97. Ra5+ {[%clk 0:00:07]}  Kd4 {[%clk 0:00:12]} 98. Ra8 {[%clk 0:00:07]}  Kd3 {[%clk 0:00:13]} 99. Re8 {[%clk 0:00:06]}  Kd2 {[%clk 0:00:13]} 100. Re7 {[%clk 0:00:06]}  Rh2 {[%clk 0:00:13]} 101. Kg5 {[%clk 0:00:05]}  Kd3 {[%clk 0:00:12]} 102. Re8 {[%clk 0:00:05]}  Rh3 {[%clk 0:00:12]} 103. Kf4 {[%clk 0:00:04]}  Kd2 {[%clk 0:00:12]} 104. Re7 {[%clk 0:00:04]}  Rh1 {[%clk 0:00:12]} 105. Kg5 {[%clk 0:00:04]}  Rg1 {[%clk 0:00:12]} 106. Kxh5 {[%clk 0:00:04]}  Rxg3 {[%clk 0:00:13]} 107. Re4 {[%clk 0:00:04]}  Rg2 {[%clk 0:00:12]} 108. Rxg4 {[%clk 0:00:04]}  Rxg4 {[%clk 0:00:13]} 109. Kxg4 {[%clk 0:00:04]} 1/2-1/2


[Site "https://www.chess.com"]

[Event "Titled Tuesday Blitz February 28 Late 2023"]
[White "Fier, Alexandr"]
[Black "Saveliev, Alexei"]
[WhiteFideId "2107139"]
[BlackFideId "24128546"]
[WhiteElo "2610"]
[BlackElo "2271"]
[Result "1-0"]
[Round "08"]
[TimeControl "180+2"]
[Date "2023.02.28"]
[WhiteClock "0:01:02"]
[BlackClock "0:00:46"]

1. d4 {[%clk 0:03:00]}  g6 {[%clk 0:03:00]} 2. h4 {[%clk 0:03:00]}  h5 {[%clk 0:02:59]} 3. e4 {[%clk 0:02:59]}  Bg7 {[%clk 0:03:00]} 4. Nc3 {[%clk 0:02:59]}  d6 {[%clk 0:03:01]} 5. Be3 {[%clk 0:03:00]}  Nc6 {[%clk 0:03:01]} 6. Qd2 {[%clk 0:03:00]}  e5 {[%clk 0:03:02]} 7. d5 {[%clk 0:03:00]}  Nce7 {[%clk 0:03:02]} 8. f3 {[%clk 0:02:59]}  f5 {[%clk 0:03:02]} 9. Bg5 {[%clk 0:02:59]}  Nf6 {[%clk 0:03:02]} 10. Bd3 {[%clk 0:02:58]}  c5 {[%clk 0:02:58]} 11. dxc6 {[%clk 0:02:57]}  bxc6 {[%clk 0:02:59]} 12. O-O-O {[%clk 0:02:56]}  Be6 {[%clk 0:02:57]} 13. Nh3 {[%clk 0:02:47]}  O-O {[%clk 0:02:56]} 14. Rhe1 {[%clk 0:02:45]}  Qc7 {[%clk 0:02:54]} 15. Bf1 {[%clk 0:02:39]}  Rad8 {[%clk 0:02:52]} 16. Kb1 {[%clk 0:02:34]}  fxe4 {[%clk 0:02:49]} 17. Nxe4 {[%clk 0:02:30]}  Nf5 {[%clk 0:02:34]} 18. Nxf6+ {[%clk 0:02:27]}  Bxf6 {[%clk 0:02:35]} 19. Bxf6 {[%clk 0:02:28]}  Rxf6 {[%clk 0:02:35]} 20. Ng5 {[%clk 0:02:29]}  Kg7 {[%clk 0:02:27]} 21. Nxe6+ {[%clk 0:02:28]}  Rxe6 {[%clk 0:02:28]} 22. g4 {[%clk 0:02:23]}  Nd4 {[%clk 0:02:26]} 23. Bg2 {[%clk 0:02:10]}  hxg4 {[%clk 0:02:23]} 24. fxg4 {[%clk 0:02:09]}  Rf8 {[%clk 0:02:16]} 25. h5 {[%clk 0:02:06]}  Ref6 {[%clk 0:02:12]} 26. Qg5 {[%clk 0:01:57]}  Qf7 {[%clk 0:02:01]} 27. Be4 {[%clk 0:01:52]}  Ne6 {[%clk 0:01:48]} 28. Qd2 {[%clk 0:01:48]}  gxh5 {[%clk 0:01:45]} 29. Qxd6 {[%clk 0:01:46]}  Qc7 {[%clk 0:01:27]} 30. Qxc7+ {[%clk 0:01:34]}  Nxc7 {[%clk 0:01:28]} 31. gxh5 {[%clk 0:01:35]}  Kh6 {[%clk 0:01:26]} 32. Bg6 {[%clk 0:01:35]}  Re6 {[%clk 0:01:23]} 33. Rd7 {[%clk 0:01:34]}  Nd5 {[%clk 0:01:20]} 34. Rg1 {[%clk 0:01:31]}  Re7 {[%clk 0:01:19]} 35. Rd6 {[%clk 0:01:30]}  Rf6 {[%clk 0:01:19]} 36. Rd8 {[%clk 0:01:28]}  Nf4 {[%clk 0:01:08]} 37. Be4 {[%clk 0:01:25]}  Rh7 {[%clk 0:00:55]} 38. Bxh7 {[%clk 0:01:23]}  Kxh7 {[%clk 0:00:56]} 39. Re8 {[%clk 0:01:17]}  Rf5 {[%clk 0:00:53]} 40. h6 {[%clk 0:01:16]}  Ng6 {[%clk 0:00:52]} 41. Re6 {[%clk 0:01:14]}  Nf8 {[%clk 0:00:51]} 42. Rxc6 {[%clk 0:01:14]}  e4 {[%clk 0:00:49]} 43. a3 {[%clk 0:01:14]}  Re5 {[%clk 0:00:49]} 44. Rc7+ {[%clk 0:01:13]}  Kxh6 {[%clk 0:00:49]} 45. Rf7 {[%clk 0:01:12]}  Ne6 {[%clk 0:00:47]} 46. Rf6+ {[%clk 0:01:03]}  Kh5 {[%clk 0:00:46]} 47. Rf2 {[%clk 0:01:02]} 1-0


[Site "https://www.chess.com"]

[Event "Titled Tuesday Blitz February 28 Late 2023"]
[White "Deac, Bogdan-Daniel"]
[Black "Lewtak, Damian"]
[WhiteFideId "1226380"]
[BlackFideId "1141724"]
[WhiteElo "2649"]
[BlackElo "2302"]
[Result "1-0"]
[Round "08"]
[TimeControl "180+2"]
[Date "2023.02.28"]
[WhiteClock "0:00:30"]
[BlackClock "0:00:53"]

1. b3 {[%clk 0:02:56]}  b6 {[%clk 0:02:59]} 2. Bb2 {[%clk 0:02:52]}  Bb7 {[%clk 0:03:00]} 3. Nf3 {[%clk 0:02:53]}  Nf6 {[%clk 0:03:00]} 4. c4 {[%clk 0:02:53]}  c5 {[%clk 0:03:00]} 5. g3 {[%clk 0:02:53]}  g6 {[%clk 0:02:59]} 6. Bxf6 {[%clk 0:02:53]}  exf6 {[%clk 0:02:59]} 7. Nc3 {[%clk 0:02:54]}  Bg7 {[%clk 0:02:57]} 8. Bg2 {[%clk 0:02:54]}  O-O {[%clk 0:02:57]} 9. O-O {[%clk 0:02:53]}  f5 {[%clk 0:02:53]} 10. Rc1 {[%clk 0:02:53]}  Nc6 {[%clk 0:02:53]} 11. e3 {[%clk 0:02:52]}  Nb4 {[%clk 0:02:52]} 12. d4 {[%clk 0:02:51]}  cxd4 {[%clk 0:02:52]} 13. exd4 {[%clk 0:02:52]}  d5 {[%clk 0:02:47]} 14. Ne5 {[%clk 0:02:36]}  Rb8 {[%clk 0:02:37]} 15. a3 {[%clk 0:02:36]}  Bxe5 {[%clk 0:02:37]} 16. axb4 {[%clk 0:02:13]}  Bd6 {[%clk 0:02:37]} 17. c5 {[%clk 0:02:13]}  Be7 {[%clk 0:02:27]} 18. Re1 {[%clk 0:02:13]}  a5 {[%clk 0:02:25]} 19. Na4 {[%clk 0:02:01]}  bxc5 {[%clk 0:02:13]} 20. dxc5 {[%clk 0:02:01]}  Bc6 {[%clk 0:02:08]} 21. bxa5 {[%clk 0:01:48]}  Bg5 {[%clk 0:02:03]} 22. f4 {[%clk 0:01:43]}  Bf6 {[%clk 0:02:01]} 23. Nb6 {[%clk 0:01:43]}  Re8 {[%clk 0:01:55]} 24. b4 {[%clk 0:01:40]}  Qc7 {[%clk 0:01:45]} 25. Qd2 {[%clk 0:01:37]}  Kg7 {[%clk 0:01:40]} 26. Qd3 {[%clk 0:01:32]}  Re4 {[%clk 0:01:32]} 27. b5 {[%clk 0:01:26]}  Be8 {[%clk 0:01:29]} 28. c6 {[%clk 0:00:54]}  Rd4 {[%clk 0:01:23]} 29. Qa3 {[%clk 0:00:44]}  g5 {[%clk 0:01:15]} 30. fxg5 {[%clk 0:00:37]}  Bxg5 {[%clk 0:01:15]} 31. Qc5 {[%clk 0:00:37]}  Rd2 {[%clk 0:01:08]} 32. Rcd1 {[%clk 0:00:33]}  Rxd1 {[%clk 0:01:05]} 33. Rxd1 {[%clk 0:00:33]}  Qe5 {[%clk 0:01:04]} 34. Kh1 {[%clk 0:00:32]}  Be3 {[%clk 0:00:55]} 35. Qxd5 {[%clk 0:00:31]}  Qxd5 {[%clk 0:00:53]} 36. Nxd5 {[%clk 0:00:30]} 1-0


[Site "https://www.chess.com"]

[Event "Titled Tuesday Blitz February 28 Late 2023"]
[White "Real_OceanStorm"]
[Black "Zhu, Jiner"]
[BlackFideId "8608059"]
[WhiteElo "2777"]
[BlackElo "2384"]
[Result "1-0"]
[Round "08"]
[TimeControl "180+2"]
[Date "2023.02.28"]
[WhiteClock "0:01:27"]
[BlackClock "0:00:40"]

1. e4 {[%clk 0:02:56]}  e5 {[%clk 0:02:59]} 2. Nf3 {[%clk 0:02:56]}  Nc6 {[%clk 0:02:59]} 3. Nc3 {[%clk 0:02:54]}  Nf6 {[%clk 0:02:58]} 4. Bc4 {[%clk 0:02:54]}  Bb4 {[%clk 0:02:53]} 5. Nd5 {[%clk 0:02:54]}  d6 {[%clk 0:02:41]} 6. c3 {[%clk 0:02:54]}  Bc5 {[%clk 0:02:38]} 7. d4 {[%clk 0:02:54]}  exd4 {[%clk 0:02:37]} 8. cxd4 {[%clk 0:02:55]}  Bb4+ {[%clk 0:02:37]} 9. Nxb4 {[%clk 0:02:55]}  Nxb4 {[%clk 0:02:37]} 10. Qa4+ {[%clk 0:02:54]}  Nc6 {[%clk 0:02:08]} 11. d5 {[%clk 0:02:53]}  Bd7 {[%clk 0:02:03]} 12. dxc6 {[%clk 0:02:53]}  Bxc6 {[%clk 0:02:04]} 13. Bb5 {[%clk 0:02:53]}  Qd7 {[%clk 0:02:02]} 14. Bxc6 {[%clk 0:02:53]}  bxc6 {[%clk 0:02:02]} 15. O-O {[%clk 0:02:52]}  O-O {[%clk 0:02:02]} 16. Bg5 {[%clk 0:02:51]}  Ng4 {[%clk 0:02:01]} 17. h3 {[%clk 0:02:51]}  Ne5 {[%clk 0:01:59]} 18. Nxe5 {[%clk 0:02:51]}  dxe5 {[%clk 0:02:00]} 19. Rfc1 {[%clk 0:02:51]}  h6 {[%clk 0:01:59]} 20. Be3 {[%clk 0:02:51]}  Rab8 {[%clk 0:01:55]} 21. Qc4 {[%clk 0:02:51]}  Rxb2 {[%clk 0:01:54]} 22. Qc3 {[%clk 0:02:45]}  Rfb8 {[%clk 0:01:48]} 23. Bxa7 {[%clk 0:02:36]}  R8b7 {[%clk 0:01:46]} 24. Bc5 {[%clk 0:02:32]}  Qe6 {[%clk 0:01:44]} 25. Rc2 {[%clk 0:02:16]}  R2b5 {[%clk 0:01:26]} 26. Be3 {[%clk 0:02:09]}  c5 {[%clk 0:01:18]} 27. Rac1 {[%clk 0:02:08]}  Qc6 {[%clk 0:01:16]} 28. Qxe5 {[%clk 0:02:08]}  c4 {[%clk 0:01:15]} 29. Qd4 {[%clk 0:02:07]}  Qa6 {[%clk 0:01:06]} 30. Qxc4 {[%clk 0:02:07]}  Qa3 {[%clk 0:01:06]} 31. Rd2 {[%clk 0:02:00]}  Qe7 {[%clk 0:00:57]} 32. Rcd1 {[%clk 0:01:49]}  Rb1 {[%clk 0:00:54]} 33. Kh2 {[%clk 0:01:32]}  Qe5+ {[%clk 0:00:49]} 34. g3 {[%clk 0:01:32]}  R7b4 {[%clk 0:00:43]} 35. Rd8+ {[%clk 0:01:27]}  Kh7 {[%clk 0:00:42]} 36. Qxf7 {[%clk 0:01:27]}  Qxe4 {[%clk 0:00:40]} 37. Qg8+ {[%clk 0:01:27]}  Kg6 {[%clk 0:00:40]} 38. R8d7 {[%clk 0:01:27]} 1-0


[Site "https://www.chess.com"]